bitfinex/quotes_SOLUSD_20251103
["timestamp","ask_amount","ask_price","bid_price","bid_amount"]
[1762206081791,5.06095412,165.85,165.81,0.72]
[1762206082397,4.04623392,165.87,165.81,0.72]
[1762206082398,11.0911604,165.84,165.81,0.72]
[1762206083002,11.09060132,165.85,165.81,0.72]
[1762206083207,11.08940842,165.88,165.81,0.72]
[1762206083516,4.04701523,165.87,165.81,0.72]
[1762206084217,4.04701523,165.87,165.82,9.78882769]
[1762206084397,10.075823,165.88,165.82,9.78882769]
[1762206084599,10.075823,165.88,165.83,0.72]
[1762206084600,15.13677712,165.88,165.83,0.72]
[1762206084926,9.10832282,165.87,165.83,0.72]
[1762206085127,9.10832282,165.87,165.79,21.312]
[1762206085128,5.06095412,165.84,165.79,21.312]
[1762206085422,5.06095412,165.84,165.8,21.312]
[1762206085812,0.1,165.89,165.85,20.592]
[1762206086195,5.06095412,165.88,165.85,21.312]
[1762206086527,11.08947516,165.88,165.85,21.312]
[1762206087619,6.02852104,165.88,165.85,21.312]
[1762206088314,11.09043325,165.86,165.83,0.7]
[1762206088702,5.06095412,165.86,165.83,21.292]
[1762206088910,0.1,165.89,165.83,21.292]
[1762206089096,5.06095412,165.88,165.83,21.292]
[1762206089492,5.06095412,165.88,165.84,0.7]
[1762206089700,5.06095412,165.87,165.84,0.7]
[1762206090023,5.06095412,165.87,165.83,20.592]
[1762206090229,5.06095412,165.87,165.84,0.7]
[1762206090396,6.02918123,165.86,165.84,0.7]
[1762206091703,5.06095412,165.88,165.84,0.7]
[1762206091906,15.13761541,165.88,165.84,0.7]
[1762206092112,6.0284543,165.88,165.84,0.7]
[1762206092415,48.62819394,165.89,165.84,21.292]
[1762206092726,48.62813984,165.89,165.85,0.68]
[1762206093015,48.62813984,165.89,165.85,21.272]
[1762206093218,5.06095412,165.86,165.82,21.272]
[1762206093421,5.06095412,165.86,165.83,0.68]
[1762206094116,4.04757556,165.85,165.83,0.68]
[1762206094295,4.04757556,165.85,165.82,20.592]
[1762206094296,9.10852968,165.85,165.82,20.592]
[1762206094495,21.43836709,165.89,165.82,20.592]
[1762206094496,11.09029289,165.86,165.82,20.592]
[1762206094704,4.04757556,165.85,165.82,21.272]
[1762206094930,4.04757556,165.85,165.83,0.68]
[1762206096301,4.04757556,165.87,165.83,21.272]
[1762206096518,4.04757556,165.86,165.84,20.592]
[1762206096710,4.04757556,165.88,165.84,20.592]
[1762206097015,4.04757556,165.87,165.84,21.272]
[1762206097221,4.04757556,165.88,165.84,21.272]
[1762206097402,4.04757556,165.87,165.85,0.68]
[1762206098824,10.07608956,165.88,165.85,0.68]
[1762206099004,4.04757556,165.87,165.85,0.68]
[1762206099522,6.12816187,165.89,165.85,0.68]
[1762206099523,4.04757556,165.88,165.85,0.68]
[1762206099718,4.04757556,165.87,165.85,0.68]
[1762206099920,4.04757556,165.88,165.85,0.68]
[1762206100131,10.17572366,165.89,165.85,0.68]
[1762206101020,4.14757556,165.89,165.85,0.68]
[1762206101226,0.1,165.89,165.88,20.592]
[1762206101403,0.1,165.89,165.88,21.272]
[1762206103503,11.18904502,165.89,165.85,21.272]
[1762206103821,5.16095412,165.89,165.86,0.68]
[1762206104218,11.18907509,165.89,165.86,0.68]
[1762206104444,11.18907509,165.89,165.85,20.592]
[1762206104616,5.06095412,165.88,165.86,0.68]
[1762206105325,11.18907509,165.89,165.86,0.68]
[1762206105500,6.12812097,165.89,165.86,0.68]
[1762206105701,11.18907509,165.89,165.86,0.68]
[1762206105903,5.16095412,165.89,165.86,0.68]
[1762206106823,5.16095412,165.89,165.86,10.46882769]
[1762206106824,0.1,165.89,165.86,10.46882769]
[1762206107030,5.16095412,165.89,165.86,0.68]
[1762206107206,5.06095412,165.87,165.83,0.68]
[1762206107405,5.06095412,165.88,165.83,0.68]
[1762206108027,5.16095412,165.89,165.83,0.68]
[1762206108324,6.12814249,165.89,165.84,20.592]
[1762206108825,6.12814249,165.89,165.85,0.68]
[1762206110811,7.89077044,165.89,165.86,20.592]
[1762206111016,13.91891591,165.89,165.86,20.592]
[1762206111940,13.91891591,165.89,165.86,21.272]
[1762206112239,4.04545779,165.88,165.86,21.272]
[1762206112732,6.12814547,165.89,165.86,20.592]
[1762206113035,0.1,165.89,165.87,0.68]
[1762206116039,10.1768694,165.89,165.87,0.68]
[1762206116244,4.04869231,165.88,165.87,0.68]
[1762206117132,0.1,165.89,165.87,0.68]
[1762206117322,0.1,165.93,165.9,20.592]
[1762206117513,0.1,165.93,165.91,10.46882769]
[1762206117935,0.1,165.93,165.92,10.46882769]
[1762206120321,0.1,165.93,165.92,16.63799022]
[1762206120528,4.04940811,165.99,165.95,20.592]
[1762206120728,4.04940811,165.99,165.92,6.84916253]
[1762206120729,0.1,166.0,165.96,21.272]
[1762206121061,4.04853546,165.99,165.96,21.272]
[1762206121241,11.8393059,165.98,165.95,20.592]
[1762206121546,6.02554832,165.96,165.95,20.592]
[1762206121851,32.92872503,165.96,165.88,0.68]
[1762206122026,7.79077044,165.91,165.88,0.68]
[1762206122232,11.8393059,165.9,165.85,0.68]
[1762206122427,4.04853546,165.89,165.85,0.68]
[1762206122648,7.79077044,165.9,165.85,0.68]
[1762206122850,11.83962944,165.89,165.85,0.68]
[1762206123025,4.05024537,165.88,165.85,0.68]
[1762206123346,4.05060343,165.87,165.81,9.78882769]
[1762206123644,4.05060343,165.87,165.76,0.71]
[1762206123645,7.79077044,165.83,165.76,0.71]
[1762206123843,4.05200572,165.82,165.76,0.71]
[1762206124058,4.05200572,165.81,165.77,20.592]
[1762206124222,13.82067878,165.84,165.81,20.592]
[1762206124427,4.0532084,165.83,165.81,20.592]
[1762206124762,4.0532084,165.82,165.79,0.71]
[1762206124921,4.0532084,165.81,165.79,0.71]
[1762206125123,7.79077044,165.84,165.79,0.71]
[1762206125448,4.05414189,165.83,165.79,0.71]
[1762206125664,6.75652451,165.88,165.8,9.78882769]
[1762206125665,5.0493772,165.88,165.8,9.78882769]
[1762206125837,4.05333779,165.87,165.84,9.78882769]
[1762206126156,11.07639653,165.92,165.86,30.38082769]
[1762206126325,6.75652451,165.95,165.82,0.71]
[1762206126326,7.79077044,165.89,165.82,0.71]
[1762206126524,4.05310627,165.88,165.82,21.302]
[1762206126753,4.05310627,165.87,165.82,21.302]
[1762206126952,60.6010339,165.95,165.85,20.592]
[1762206126953,4.05310627,165.86,165.85,20.592]
[1762206127320,11.07692936,165.91,165.85,21.302]
[1762206127539,4.05375016,165.9,165.85,0.71]
[1762206127734,4.05375016,165.89,165.85,0.71]
[1762206127935,4.05375016,165.88,165.85,10.49882769]
[1762206128147,11.07692936,165.91,165.85,10.49882769]
[1762206128148,4.05375016,165.87,165.85,10.49882769]
[1762206128326,18.8676998,165.91,165.85,31.09082769]
[1762206128528,4.05425347,165.9,165.88,20.592]
[1762206128753,4.05425347,165.89,165.88,20.592]
[1762206129744,4.05425347,165.89,165.88,31.09082769]
[1762206130755,4.05425347,165.92,165.88,31.09082769]
[1762206131050,4.05425347,165.91,165.88,31.09082769]
[1762206131253,6.02666717,165.93,165.88,31.09082769]
[1762206131456,4.05370389,165.92,165.88,31.09082769]
[1762206131750,4.05370389,165.91,165.89,20.592]
[1762206131953,4.05370389,165.9,165.89,20.592]
[1762206132942,4.05370389,165.9,165.89,0.71]
[1762206133442,4.05370389,165.9,165.89,21.302]
[1762206133654,4.05370389,165.9,165.89,0.71]
[1762206134354,4.05370389,165.9,165.89,21.302]
[1762206135069,4.05370389,165.9,165.89,31.09082769]
[1762206135274,4.05370389,165.9,165.89,31.23298926]
[1762206135551,6.02564144,165.96,165.9,9.78882769]
[1762206135552,5.0493772,165.95,165.9,9.78882769]
[1762206135733,4.05391525,165.94,165.9,10.49882769]
[1762206135932,4.05391525,165.93,165.89,20.592]
[1762206136135,4.05391525,165.92,165.89,20.592]
[1762206136340,13.28014764,165.95,165.89,21.302]
[1762206136341,4.05391525,165.91,165.89,21.302]
[1762206136553,5.4893772,165.95,165.89,21.302]
[1762206136758,4.05415431,165.94,165.9,0.71]
[1762206136929,4.05415431,165.93,165.92,20.592]
[1762206137354,4.05415431,165.93,165.92,31.23298926]
[1762206138332,6.75652451,165.98,165.92,31.23298926]
[1762206138333,11.07426045,165.98,165.93,9.78882769]
[1762206138539,11.07426045,165.98,165.93,10.49882769]
[1762206138540,4.05310471,165.97,165.93,10.49882769]
[1762206138748,4.05310471,165.96,165.95,20.592]
[1762206139167,4.05310471,165.96,165.95,31.09082769]
[1762206141370,4.05037344,165.99,165.95,31.09082769]
[1762206141545,4.05037344,165.98,165.95,31.09082769]
[1762206141872,0.1,166.0,165.96,0.71]
[1762206142043,4.05008145,165.99,165.98,20.592]
[1762206142454,4.05008145,165.99,165.98,21.302]
[1762206142647,0.1,166.0,165.98,31.09082769]
[1762206142851,0.1,166.0,165.99,0.71]
[1762206143146,0.1,166.0,165.98,30.38082769]
[1762206143478,0.1,166.0,165.98,31.09082769]
[1762206143850,0.54,166.0,165.96,20.592]
[1762206144080,4.04575732,165.99,165.96,20.592]
[1762206144373,6.1241638,166.0,165.97,0.71]
[1762206144568,4.04459829,165.99,165.97,0.71]
[1762206144775,0.1,166.0,165.97,0.71]
[1762206144973,4.04457673,165.99,165.97,0.71]
[1762206145143,4.04340627,165.99,165.97,0.71]
[1762206145564,0.1,166.0,165.97,0.71]
[1762206145565,4.14319792,166.0,165.98,9.78882769]
[1762206145873,4.14319792,166.0,165.98,20.592]
[1762206145874,4.04319792,165.99,165.98,20.592]
[1762206146078,0.1,166.0,165.98,20.592]
[1762206146253,4.14193913,166.0,165.98,20.592]
[1762206146575,4.14193913,166.0,165.97,20.592]
[1762206146782,10.16621575,166.0,165.97,20.592]
[1762206147079,4.14193913,166.0,165.98,0.71]
[1762206147379,0.1,166.0,165.98,0.71]
[1762206147946,0.1,166.0,165.98,10.49882769]
[1762206148169,0.1,166.0,165.99,30.38082769]
[1762206148358,0.1,166.0,165.99,31.08082769]
[1762206150566,0.1,166.0,165.99,31.22298926]
[1762206151074,0.1,166.0,165.99,20.592]
[1762206151388,0.1,166.0,165.99,31.08082769]
[1762206151554,0.1,166.0,165.99,31.22298926]
[1762206152360,0.1,166.0,165.99,37.24744856]
[1762206152781,0.1,166.0,165.99,31.22298926]
[1762206153979,0.1,166.0,165.99,31.09082769]
[1762206154362,0.1,166.0,165.99,30.38082769]
[1762206154763,0.1,166.0,165.99,31.09082769]
[1762206159169,0.1,166.0,165.99,31.23298926]
[1762206170699,0.1,166.0,165.99,30.38082769]
[1762206171395,0.1,166.0,165.99,37.25744856]
[1762206171797,0.1,166.05,166.04,9.78882769]
[1762206172097,0.1,166.05,166.04,9.93098926]
[1762206172310,0.1,166.05,166.04,10.64098926]
[1762206173187,0.1,166.05,166.04,9.78882769]
[1762206173904,0.1,166.05,166.04,10.49882769]
[1762206174096,0.1,166.05,166.04,9.78882769]
[1762206175184,0.1,166.05,166.04,10.49882769]
[1762206176107,0.1,166.05,166.04,9.78882769]
[1762206177181,0.1,166.05,166.04,10.49882769]
[1762206177499,0.1,166.05,166.04,9.78882769]
[1762206178479,0.1,166.05,166.03,20.592]
[1762206178685,0.1,166.05,166.0,9.78882769]
[1762206178686,0.74,166.05,166.0,9.78882769]
[1762206179031,0.74,166.05,166.03,20.592]
[1762206179185,4.0415418,166.04,166.03,20.592]
[1762206182615,10.06422451,166.04,166.01,0.71]
[1762206182819,6.12239678,166.05,166.03,20.592]
[1762206183114,4.04827012,166.04,166.03,30.38082769]
[1762206183592,4.04827012,166.04,166.03,31.03082769]
[1762206184191,0.1,166.05,166.04,9.78882769]
[1762206184391,4.15153679,166.05,166.04,9.78882769]
[1762206184794,10.81394247,166.05,166.0,20.592]
[1762206185004,6.12240568,166.05,166.04,20.592]
[1762206185199,12.10851468,166.05,166.01,30.38082769]
[1762206185402,4.05189024,166.04,166.03,20.592]
[1762206185832,6.626109,166.04,165.97,6.12240568]
[1762206186026,1.93421876,166.01,165.97,6.12240568]
[1762206186355,5.04434186,165.98,165.93,9.78882769]
[1762206186653,4.05742626,165.97,165.95,15.06719209]
[1762206186950,6.02491629,165.98,165.95,15.06719209]
[1762206187241,5.04434186,165.96,165.89,0.65]
[1762206187422,4.05748467,165.95,165.92,6.02491629]
[1762206187628,0.64,165.97,165.89,0.65]
[1762206187814,4.05701894,165.96,165.93,20.592]
[1762206188019,4.05701894,165.96,165.9,26.86347142]
[1762206188020,5.03837102,166.0,165.98,20.592]
[1762206188214,4.05685949,165.99,165.98,30.38082769]
[1762206188450,0.64,166.03,165.99,9.78882769]
[1762206188632,4.05425093,166.02,165.99,9.78882769]
[1762206188833,0.64,166.03,165.99,9.78882769]
[1762206188834,6.66309085,166.03,165.99,9.78882769]
[1762206189029,4.05425068,166.02,165.99,9.78882769]
[1762206189212,6.02309085,166.03,165.99,9.78882769]
[1762206189416,6.02309085,166.03,165.99,24.94470128]
[1762206189417,4.05489192,166.02,165.99,24.94470128]
[1762206189648,4.05489192,166.01,165.99,24.94470128]
[1762206189822,6.66309085,166.03,165.99,24.94470128]
[1762206190139,4.05519513,166.02,166.01,20.592]
[1762206193029,0.74,166.05,166.01,20.592]
[1762206193226,4.05622787,166.04,166.01,20.592]
[1762206193426,4.05622787,166.03,166.01,20.592]
[1762206193627,6.6626561,166.04,166.01,20.592]
[1762206193628,4.05622787,166.02,166.01,20.592]
[1762206196246,0.1,166.05,166.01,20.592]
[1762206196247,0.1,166.05,166.02,20.592]
[1762206196433,4.05642351,166.04,166.02,20.592]
[1762206196635,4.05642351,166.03,166.02,20.592]
[1762206197553,6.12233703,166.05,166.02,20.592]
[1762206197738,4.05612649,166.04,166.02,20.592]
[1762206198052,6.12233703,166.05,166.02,20.592]
[1762206198250,4.05611823,166.04,166.02,20.592]
[1762206198543,0.1,166.05,166.02,20.592]
[1762206198719,4.05609904,166.04,166.02,20.592]
[1762206198928,4.0561687,166.03,166.01,30.38082769]
[1762206199238,0.74,166.05,166.02,6.66201389]
[1762206199443,4.05624606,166.04,166.02,6.66201389]
[1762206199748,6.12238319,166.05,166.02,6.66201389]
[1762206199954,4.05619641,166.04,166.02,6.66201389]
[1762206200124,6.76238319,166.05,166.02,6.66201389]
[1762206200324,4.05625318,166.04,166.02,6.66201389]
[1762206200544,6.12238319,166.05,166.02,6.66201389]
[1762206200742,4.05627236,166.04,166.02,6.66201389]
[1762206201044,6.76238319,166.05,166.02,6.66201389]
[1762206201246,4.05611497,166.04,166.02,6.66201389]
[1762206201425,6.12238319,166.05,166.02,6.66201389]
[1762206201746,4.05629979,166.04,166.02,7.31201389]
[1762206201938,0.1,166.05,166.02,7.31201389]
[1762206202250,4.05625013,166.04,166.02,7.31201389]
[1762206202540,0.1,166.05,166.02,7.31201389]
[1762206202727,4.05628044,166.04,166.02,7.31201389]
[1762206202927,0.1,166.05,166.02,7.31201389]
[1762206202928,6.1223047,166.05,166.02,7.31201389]
[1762206203148,4.0563301,166.04,166.02,6.66201389]
[1762206203340,6.1223047,166.05,166.02,6.66201389]
[1762206203545,4.05640646,166.04,166.02,6.66201389]
[1762206203746,6.1223047,166.05,166.02,6.66201389]
[1762206203944,4.05640646,166.04,166.02,6.66201389]
[1762206204249,6.1223047,166.05,166.02,7.31201389]
[1762206204603,4.05644728,166.04,166.02,7.31201389]
[1762206204770,6.1223047,166.05,166.02,7.31201389]
[1762206204969,4.05644728,166.04,166.02,7.31201389]
[1762206205170,6.1223047,166.05,166.02,7.31201389]
[1762206205482,4.05640592,166.04,166.02,7.31201389]
[1762206205695,4.05651638,166.03,166.02,6.66201389]
[1762206205987,0.1,166.05,166.02,6.66201389]
[1762206206186,4.05639787,166.04,166.02,6.66201389]
[1762206206500,6.1222859,166.05,166.02,6.66201389]
[1762206206684,4.05643219,166.04,166.02,6.66201389]
[1762206206990,6.1222859,166.05,166.02,6.66201389]
[1762206207193,4.05643219,166.04,166.02,6.66201389]
[1762206207374,4.05648575,166.03,166.02,6.66201389]
[1762206208005,4.69648575,166.03,166.01,20.592]
[1762206208302,6.02268291,166.04,166.0,6.02264562]
[1762206208303,4.05648575,166.02,166.0,6.02264562]
[1762206208499,4.05684994,166.01,166.0,20.592]
[1762206208869,4.05684994,166.01,165.99,9.78882769]
[1762206209082,0.64,166.03,165.99,9.78882769]
[1762206209281,4.05681596,166.02,165.99,10.44882769]
[1762206209475,6.66336421,166.03,165.99,10.44882769]
[1762206209682,4.05666457,166.02,165.99,10.44882769]
[1762206209869,6.02336421,166.03,165.99,10.44882769]
[1762206210087,4.05660538,166.02,165.99,10.44882769]
[1762206210266,6.02336421,166.03,165.99,10.44882769]
[1762206210267,6.66336421,166.03,165.99,10.44882769]
[1762206210471,4.05652599,166.02,165.99,10.44882769]
[1762206210687,6.66336421,166.03,165.99,10.44882769]
[1762206210893,0.1,166.05,166.01,9.78882769]
[1762206211186,4.0559832,166.04,166.01,9.78882769]
[1762206211499,0.1,166.05,165.99,26.61644877]
[1762206211500,4.0559832,166.03,166.02,29.94427465]
[1762206213398,0.1,166.05,166.03,9.78882769]
[1762206213592,4.05609911,166.04,166.03,10.46882769]
[1762206213789,0.1,166.05,166.03,9.78882769]
[1762206214388,0.1,166.05,166.04,0.68]
[1762206214612,0.1,166.05,166.04,10.46882769]
[1762206215683,0.1,166.05,166.04,9.78882769]
[1762206215882,4.15521256,166.05,166.04,9.78882769]
[1762206216398,0.1,166.05,166.04,9.78882769]
[1762206217802,0.1,166.05,165.99,15.06040177]
[1762206217803,4.79525538,166.05,166.03,20.592]
[1762206217994,4.05525538,166.04,166.03,20.592]
[1762206218682,4.0559491,166.04,166.03,20.592]
[1762206219520,0.1,166.05,166.04,9.78882769]
[1762206219799,0.1,166.05,166.04,16.6336344]
[1762206222596,0.1,166.1,166.07,20.592]
[1762206222789,0.1,166.1,166.05,0.14216157]
[1762206222790,0.1,166.1,166.08,30.52298926]
[1762206223190,0.1,166.1,166.09,14.66364679]
[1762206224210,0.1,166.1,166.09,20.68447886]
[1762206224422,0.1,166.1,166.09,14.66364679]
[1762206225482,0.1,166.1,166.09,13.84148522]
[1762206225688,0.64,166.19,166.09,20.68447886]
[1762206225887,0.64,166.18,166.16,20.592]
[1762206226107,0.64,166.19,166.16,20.592]
[1762206226515,0.64,166.19,166.17,20.592]
[1762206227717,0.74,166.21,166.16,24.63570232]
[1762206228018,0.64,166.2,166.16,24.63570232]
[1762206228322,0.64,166.2,166.17,20.592]
[1762206228715,6.65685487,166.2,166.17,20.592]
[1762206229931,0.64,166.2,166.17,20.592]
[1762206230106,6.65685644,166.2,166.17,20.592]
[1762206231207,6.65685644,166.2,166.17,20.55295738]
[1762206231530,0.1,166.21,166.17,20.55295738]
[1762206231702,0.1,166.21,166.18,9.78882769]
[1762206231904,0.1,166.21,166.18,27.87582615]
[1762206232118,0.74,166.21,166.18,18.08699846]
[1762206232613,0.1,166.21,166.18,18.08699846]
[1762206234108,0.1,166.21,166.18,24.10451503]
[1762206234309,0.1,166.21,166.19,0.68]
[1762206234909,0.1,166.21,166.2,6.65529122]
[1762206235330,0.1,166.21,166.2,7.33529122]
[1762206235539,0.1,166.21,166.2,37.71611891]
[1762206235744,0.1,166.21,166.2,43.73296608]
[1762206236419,0.1,166.21,166.2,23.28312765]
[1762206238713,0.1,166.21,166.2,17.12411891]
[1762206239219,0.1,166.21,166.2,43.73296608]
[1762206240719,0.74,166.21,166.2,6.65529122]
[1762206240919,3.75601078,166.21,166.15,0.68]
[1762206241127,3.75601078,166.21,166.16,3.01601078]
[1762206241128,0.64,166.2,166.16,3.01601078]
[1762206241619,0.64,166.2,166.16,23.60801078]
[1762206242533,9.67286137,166.2,166.16,3.01601078]
[1762206242739,9.67286137,166.2,166.14,0.68]
[1762206242927,9.67286137,166.2,166.14,10.35286137]
[1762206243133,0.64,166.2,166.14,10.35286137]
[1762206243336,6.65702961,166.2,166.14,10.35286137]
[1762206243632,3.01601078,166.18,166.14,9.67286137]
[1762206243831,3.01601078,166.17,166.1,10.46882769]
[1762206244013,0.64,166.19,166.11,15.04052635]
[1762206244014,3.01601078,166.16,166.11,15.04052635]
[1762206244217,3.65601078,166.18,166.11,15.72052635]
[1762206244512,0.64,166.18,166.12,10.46882769]
[1762206244717,0.1,166.21,166.15,20.592]
[1762206244718,6.65700187,166.2,166.15,20.592]
[1762206245139,0.64,166.19,166.15,20.592]
[1762206246836,0.1,166.21,166.16,0.68]
[1762206247240,6.11649036,166.21,166.16,0.68]
[1762206247831,0.64,166.2,166.15,20.592]
[1762206248138,6.01720921,166.19,166.15,20.592]
[1762206248330,6.01720921,166.19,166.15,21.272]
[1762206248937,6.01720921,166.19,166.15,20.592]
[1762206249148,6.01720921,166.19,166.15,21.272]
[1762206250936,6.01720921,166.19,166.13,9.78882769]
[1762206251238,6.65720921,166.19,166.13,30.38082769]
[1762206251445,6.01720921,166.19,166.14,0.68]
[1762206251842,6.65720921,166.19,166.14,0.68]
[1762206253861,0.64,166.18,166.13,20.592]
[1762206254045,3.01601078,166.17,166.1,9.78882769]
[1762206254243,3.65601078,166.18,166.13,0.68]
[1762206254445,0.64,166.18,166.13,0.68]
[1762206254756,6.01720921,166.19,166.13,21.272]
[1762206255128,9.67321999,166.19,166.13,21.272]
[1762206255335,0.64,166.18,166.13,21.272]
[1762206255859,4.02142221,166.19,166.14,0.68]
[1762206256063,0.64,166.2,166.14,0.68]
[1762206256935,13.69428016,166.2,166.14,0.68]
[1762206257137,6.65740296,166.19,166.14,0.68]
[1762206257342,9.67341374,166.19,166.13,27.29128208]
[1762206257757,6.65740296,166.19,166.13,27.29128208]
[1762206257957,6.65740296,166.19,166.13,21.272]
[1762206258155,0.64,166.18,166.13,21.272]
[1762206259253,0.64,166.18,166.14,0.68]
[1762206259850,6.65777954,166.18,166.14,0.68]
[1762206260054,6.65777954,166.18,166.13,21.272]
[1762206260256,10.67920175,166.18,166.13,21.272]
[1762206260671,10.67920175,166.18,166.13,20.592]
[1762206260853,3.01601078,166.16,166.11,0.68]
[1762206261056,4.02142221,166.17,166.11,27.2920204]
[1762206261270,4.02142221,166.16,166.11,27.2920204]
[1762206261460,4.66142221,166.17,166.11,27.2920204]
[1762206261656,4.02142221,166.16,166.11,27.2920204]
[1762206261865,6.01865783,166.15,166.11,21.272]
[1762206262164,6.01842124,166.16,166.12,0.68]
[1762206262349,0.64,166.17,166.12,0.68]
[1762206262551,4.038054,166.16,166.12,0.68]
[1762206262753,9.6740315,166.17,166.12,0.68]
[1762206262958,4.03804977,166.16,166.12,0.68]
[1762206263159,9.6740315,166.17,166.12,0.68]
[1762206263160,4.04105863,166.15,166.12,0.68]
[1762206263354,4.04105863,166.16,166.12,0.68]
[1762206263558,4.04105863,166.15,166.12,0.68]
[1762206263760,4.04105863,166.16,166.12,0.68]
[1762206263965,6.01836426,166.16,166.12,0.68]
[1762206264157,4.04467623,166.15,166.12,0.68]
[1762206264466,6.01836426,166.16,166.12,0.68]
[1762206264644,4.04488974,166.15,166.12,0.68]
[1762206264849,6.01836426,166.16,166.12,0.68]
[1762206265052,4.04488893,166.15,166.12,0.68]
[1762206265260,6.01836426,166.16,166.12,0.68]
[1762206265459,4.04682887,166.15,166.12,0.68]
[1762206265660,6.01836426,166.16,166.12,0.68]
[1762206265879,4.04687918,166.15,166.12,0.68]
[1762206266080,0.64,166.17,166.12,0.68]
[1762206266280,4.04834756,166.16,166.12,0.68]
[1762206266448,5.65545973,166.2,166.13,9.78882769]
[1762206266654,4.04828541,166.19,166.16,20.592]
[1762206266988,0.1,166.21,166.16,20.592]
[1762206267148,4.04753497,166.2,166.17,0.68]
[1762206267354,4.04753497,166.19,166.17,0.68]
[1762206267576,0.1,166.21,166.17,0.68]
[1762206267775,4.04927243,166.2,166.17,0.68]
[1762206267990,4.04927243,166.19,166.17,0.68]
[1762206268189,0.1,166.21,166.17,6.69783872]
[1762206268358,0.1,166.21,166.17,27.28983872]
[1762206268683,0.1,166.21,166.18,0.69]
[1762206269777,0.1,166.21,166.2,20.592]
[1762206269972,0.1,166.21,166.2,27.29884717]
[1762206270970,0.1,166.21,166.2,37.22983643]
[1762206276862,0.1,166.21,166.2,43.88382778]
[1762206277795,0.1,166.21,166.2,6.65399135]
[1762206277960,0.1,166.21,166.19,15.80577225]
[1762206278162,0.1,166.21,166.19,16.48577225]
[1762206278373,0.1,166.21,166.2,0.68]
[1762206279358,0.1,166.21,166.2,6.69684717]
[1762206279774,0.1,166.21,166.2,37.21983643]
[1762206280773,0.1,166.21,166.2,20.66698495]
[1762206281474,0.1,166.21,166.2,16.62783643]
[1762206281882,0.1,166.21,166.2,37.21983643]
[1762206282079,0.1,166.21,166.2,16.62783643]
[1762206282674,0.1,166.21,166.2,37.21983643]
[1762206282882,0.1,166.21,166.2,16.62783643]
[1762206284778,0.1,166.21,166.2,37.07767486]
[1762206284979,0.1,166.21,166.2,30.38082769]
[1762206285184,0.1,166.21,166.18,6.75446518]
[1762206285384,0.1,166.21,166.18,26.60955196]
[1762206285579,0.1,166.21,166.19,0.68]
[1762206286780,0.1,166.21,166.19,6.69700293]
[1762206287470,0.1,166.21,166.2,31.06082769]
[1762206288682,0.1,166.21,166.2,20.592]
[1762206290178,0.1,166.21,166.18,21.272]
[1762206290372,0.1,166.21,166.19,0.68]
[1762206292082,0.1,166.21,166.2,9.78882769]
[1762206292592,0.1,166.21,166.2,10.46882769]
[1762206293476,0.1,166.21,166.18,18.08263765]
[1762206293792,0.1,166.21,166.18,0.68]
[1762206294000,0.1,166.21,166.19,0.68]
[1762206295680,0.1,166.21,166.19,6.69715231]
[1762206295891,0.1,166.27,166.23,20.592]
[1762206296096,0.74,166.27,166.23,20.592]
[1762206296291,0.74,166.27,166.23,21.272]
[1762206297592,0.74,166.27,166.23,27.28747307]
[1762206297985,0.1,166.27,166.23,27.28747307]
[1762206299107,0.1,166.27,166.24,0.68]
[1762206299600,0.1,166.27,166.23,26.60747307]
[1762206299790,0.1,166.27,166.23,27.28747307]
[1762206300410,0.1,166.27,166.24,0.68]
[1762206301203,0.64,166.26,166.22,6.65363461]
[1762206301504,0.64,166.26,166.21,6.01623253]